[Event "Schack-SM 2024: Veteran-SM 65+"]
[Site "Fortnox Arena, Hejaregatan 5, Vaxjo, Sweden"]
[Date "2024.07.04"]
[Round "6.3"]
[White "Blomstrom, Lars"]
[Black "Dolata, Henryk"]
[Result "1/2-1/2"]
[TimeControl "90 minutes for 40 moves + 30 minutes for the rest of the game + 30 seconds per move from move one."]
[WhiteElo "2122"]
[BlackElo "1989"]

1. e4 {[%clk 01:30:56]} {[%emt 00:00:04]} e6 {[%clk 01:30:46]} {[%emt
00:00:14]} 2. d4 {[%clk 01:31:19]} {[%emt 00:00:07]} d5 {[%clk 01:31:07]}
{[%emt 00:00:09]} 3. Nc3 {[%clk 01:31:45]} {[%emt 00:00:05]} dxe4 {[%clk
01:30:36]} {[%emt 00:01:00]} 4. Nxe4 {[%clk 01:32:07]} {[%emt 00:00:09]} Bd7
{[%clk 01:30:56]} {[%emt 00:00:10]} 5. Nf3 {[%clk 01:31:23]} {[%emt 00:01:13]}
Bc6 {[%clk 01:31:12]} {[%emt 00:00:14]} 6. Bd3 {[%clk 01:30:38]} {[%emt
00:01:15]} Nd7 {[%clk 01:31:27]} {[%emt 00:00:15]} 7. O-O {[%clk 01:28:38]}
{[%emt 00:02:29]} Ngf6 {[%clk 01:29:23]} {[%emt 00:02:34]} 8. Qe2 {[%clk
01:25:40]} {[%emt 00:03:29]} Be7 {[%clk 01:24:55]} {[%emt 00:04:58]} 9. Bd2
{[%clk 01:17:52]} {[%emt 00:08:18]} Nxe4 {[%clk 01:22:18]} {[%emt 00:03:08]} 10.
Bxe4 {[%clk 01:18:19]} {[%emt 00:00:02]} Bxe4 {[%clk 01:22:26]} {[%emt
00:00:23]} 11. Qxe4 {[%clk 01:18:46]} {[%emt 00:00:02]} c6 {[%clk 01:22:24]}
{[%emt 00:00:32]} 12. c4 {[%clk 01:17:11]} {[%emt 00:02:04]} O-O {[%clk
01:21:25]} {[%emt 00:01:28]} 13. Rfe1 {[%clk 01:13:52]} {[%emt 00:03:50]} Re8
{[%clk 01:21:00]} {[%emt 00:00:56]} 14. Bc3 {[%clk 01:10:58]} {[%emt 00:03:24]}
Bf6 {[%clk 01:16:25]} {[%emt 00:05:05]} 15. Rad1 {[%clk 00:55:05]} {[%emt
00:16:23]} Qc7 {[%clk 01:13:20]} {[%emt 00:03:35]} 16. Ne5 {[%clk 00:45:20]}
{[%emt 00:10:14]} Bxe5 {[%clk 00:55:37]} {[%emt 00:18:14]} 17. dxe5 {[%clk
00:43:21]} {[%emt 00:02:29]} Rad8 {[%clk 00:55:48]} {[%emt 00:00:19]} 18. Qe3
{[%clk 00:36:32]} {[%emt 00:07:18]} Nb6 {[%clk 00:53:47]} {[%emt 00:02:32]} 19.
b3 {[%clk 00:32:40]} {[%emt 00:04:22]} Rxd1 {[%clk 00:54:01]} {[%emt 00:00:16]}
20. Rxd1 {[%clk 00:33:08]} {[%emt 00:00:02]} Rd8 {[%clk 00:54:09]} {[%emt
00:00:21]} 21. Qe2 {[%clk 00:26:31]} {[%emt 00:07:07]} Kf8 {[%clk 00:45:16]}
{[%emt 00:09:24]} 22. Bb4+ {[%clk 00:25:47]} {[%emt 00:01:11]} Kg8 {[%clk
00:43:17]} {[%emt 00:02:32]} 23. Bd6 {[%clk 00:23:02]} {[%emt 00:03:14]} Qd7
{[%clk 00:42:25]} {[%emt 00:01:23]} 24. Rd2 {[%clk 00:23:06]} {[%emt 00:00:24]}
Qe8 {[%clk 00:42:22]} {[%emt 00:00:36]} 25. Qd1 {[%clk 00:22:36]} {[%emt
00:01:00]} Nc8 {[%clk 00:38:19]} {[%emt 00:04:33]} 26. g3 {[%clk 00:18:50]}
{[%emt 00:04:15]} h6 {[%clk 00:32:14]} {[%emt 00:06:36]} 27. Kg2 {[%clk
00:18:44]} {[%emt 00:00:35]} b6 {[%clk 00:30:47]} {[%emt 00:01:57]} 28. c5
{[%clk 00:14:08]} {[%emt 00:05:05]} bxc5 {[%clk 00:26:52]} {[%emt 00:04:27]} 29.
Bxc5 {[%clk 00:09:33]} {[%emt 00:05:04]} Rd5 {[%clk 00:26:24]} {[%emt
00:00:59]} 30. Rxd5 {[%clk 00:09:56]} {[%emt 00:00:05]} exd5 {[%clk 00:26:31]}
{[%emt 00:00:24]} 31. Qd4 {[%clk 00:10:12]} {[%emt 00:00:14]} Qd7 {[%clk
00:26:00]} {[%emt 00:01:01]} 32. h3 {[%clk 00:07:57]} {[%emt 00:02:45]} Qb7
{[%clk 00:24:20]} {[%emt 00:02:11]} 33. f4 {[%clk 00:05:45]} {[%emt 00:02:41]}
g6 {[%clk 00:23:11]} {[%emt 00:02:11]} 34. e6 {[%clk 00:04:33]} {[%emt
00:02:09]} Qa6 {[%clk 00:15:14]} {[%emt 00:08:27]} 35. Qe3 {[%clk 00:04:17]}
{[%emt 00:00:45]} Qxa2+ {[%clk 00:12:39]} {[%emt 00:03:07]} 36. Kf3 {[%clk
00:04:40]} {[%emt 00:00:04]} Qb1 {[%clk 00:10:19]} {[%emt 00:02:53]} 37. g4
{[%clk 00:01:51]} {[%emt 00:03:18]} Qe4+ {[%clk 00:06:52]} {[%emt 00:03:57]} 38.
Qxe4 {[%clk 00:01:29]} {[%emt 00:00:53]} dxe4+ {[%clk 00:07:21]} {[%emt
00:00:01]} 39. Kxe4 {[%clk 00:01:51]} {[%emt 00:00:08]} fxe6 {[%clk 00:07:42]}
{[%emt 00:00:08]} 40. Ke5 {[%clk 00:01:38]} {[%emt 00:00:43]} Kf7 {[%clk
00:08:11]} {[%emt 00:00:02]} 41. Bd4 {[%clk 00:25:58]} {[%emt 00:06:10]}
1/2-1/2

[Event "Schack-SM 2024: Veteran-SM 65+"]
[Site "Fortnox Arena, Hejaregatan 5, Vaxjo, Sweden"]
[Date "2024.07.04"]
[Round "6.4"]
[White "Lagerborg, Krister"]
[Black "Bohlin, Jan"]
[Result "1/2-1/2"]
[TimeControl "90 minutes for 40 moves + 30 minutes for the rest of the game + 30 seconds per move from move one."]
[WhiteElo "2091"]
[BlackElo "1854"]

1. e4 {[%clk 01:30:54]} {[%emt 00:00:05]} c5 {[%clk 01:30:54]} {[%emt
00:00:06]} 2. d3 {[%clk 01:31:16]} {[%emt 00:00:08]} Nc6 {[%clk 01:30:48]}
{[%emt 00:00:38]} 3. c3 {[%clk 01:31:31]} {[%emt 00:00:13]} d5 {[%clk
01:28:16]} {[%emt 00:03:02]} 4. Qe2 {[%clk 01:31:54]} {[%emt 00:00:07]} e6
{[%clk 01:24:40]} {[%emt 00:04:07]} 5. g3 {[%clk 01:31:13]} {[%emt 00:01:10]}
dxe4 {[%clk 01:16:29]} {[%emt 00:08:42]} 6. dxe4 {[%clk 01:31:20]} {[%emt
00:00:22]} Nf6 {[%clk 01:14:29]} {[%emt 00:02:30]} 7. Bg2 {[%clk 01:31:24]}
{[%emt 00:00:26]} Be7 {[%clk 01:09:45]} {[%emt 00:05:14]} 8. Be3 {[%clk
01:25:38]} {[%emt 00:06:16]} Qc7 {[%clk 01:03:50]} {[%emt 00:06:25]} 9. f4
{[%clk 01:20:36]} {[%emt 00:05:30]} b6 {[%clk 00:59:15]} {[%emt 00:05:08]} 10.
g4 {[%clk 01:17:47]} {[%emt 00:03:17]} Bb7 {[%clk 00:57:27]} {[%emt 00:02:20]}
11. g5 {[%clk 01:17:14]} {[%emt 00:01:03]} Nd7 {[%clk 00:56:35]} {[%emt
00:01:21]} 12. Nd2 {[%clk 01:14:07]} {[%emt 00:03:37]} h6 {[%clk 00:48:13]}
{[%emt 00:08:53]} 13. h4 {[%clk 01:11:15]} {[%emt 00:03:21]} hxg5 {[%clk
00:47:19]} {[%emt 00:01:24]} 14. hxg5 {[%clk 01:11:43]} {[%emt 00:00:02]} Rxh1
{[%clk 00:47:35]} {[%emt 00:00:14]} 15. Bxh1 {[%clk 01:12:08]} {[%emt
00:00:05]} O-O-O {[%clk 00:45:03]} {[%emt 00:03:03]} 16. O-O-O {[%clk
01:12:11]} {[%emt 00:00:27]} Rh8 {[%clk 00:39:52]} {[%emt 00:05:40]} 17. Bg2
{[%clk 01:09:57]} {[%emt 00:02:43]} Kb8 {[%clk 00:33:49]} {[%emt 00:06:33]} 18.
Nh3 {[%clk 01:06:04]} {[%emt 00:04:24]} Ka8 {[%clk 00:29:03]} {[%emt 00:05:17]}
19. Qg4 {[%clk 01:03:07]} {[%emt 00:03:26]} g6 {[%clk 00:27:36]} {[%emt
00:01:56]} 20. Nf2 {[%clk 00:59:47]} {[%emt 00:03:51]} Bf8 {[%clk 00:18:14]}
{[%emt 00:09:52]} 21. Bf3 {[%clk 00:56:30]} {[%emt 00:03:48]} Be7 {[%clk
00:15:02]} {[%emt 00:03:42]} 22. Qg2 {[%clk 00:55:56]} {[%emt 00:01:02]} Bd6
{[%clk 00:13:36]} {[%emt 00:01:57]} 23. e5 {[%clk 00:55:52]} {[%emt 00:00:35]}
Be7 {[%emt 00:03:44]} 24. Nc4 {[%clk 00:53:26]} {[%emt 00:02:54]} Rd8 {[%clk
00:08:06]} {[%emt 00:02:47]} 25. Ne4 {[%clk 00:52:55]} {[%emt 00:01:01]} Ndb8
{[%clk 00:06:09]} {[%emt 00:02:27]} 26. Ncd6 {[%clk 00:49:43]} {[%emt
00:03:42]} Bxd6 {[%clk 00:06:05]} {[%emt 00:00:35]} 27. Nxd6 {[%clk 00:49:40]}
{[%emt 00:00:33]} Rd7 {[%clk 00:04:41]} {[%emt 00:01:54]} 28. Rd2 {[%clk
00:44:34]} {[%emt 00:05:35]} Nd8 {[%clk 00:03:34]} {[%emt 00:01:37]} 29. Nb5
{[%clk 00:35:53]} {[%emt 00:09:11]} Qc8 {[%clk 00:03:29]} {[%emt 00:00:35]} 30.
Rxd7 {[%clk 00:26:29]} {[%emt 00:09:54]} Qxd7 {[%clk 00:03:10]} {[%emt
00:00:49]} 31. Nd6 {[%clk 00:24:47]} {[%emt 00:02:11]} Bxf3 {[%clk 00:03:01]}
{[%emt 00:00:40]} 32. Qxf3+ {[%clk 00:25:03]} {[%emt 00:00:13]} Qc6 {[%clk
00:03:15]} {[%emt 00:00:10]} 33. Qxc6+ {[%clk 00:23:54]} {[%emt 00:01:45]}
Nbxc6 {[%clk 00:03:41]} {[%emt 00:00:04]} 34. Kc2 {[%clk 00:23:41]} {[%emt
00:00:43]} Kb8 {[%clk 00:03:27]} {[%emt 00:00:46]} 35. Kd3 {[%clk 00:23:48]}
{[%emt 00:00:22]} Kc7 {[%clk 00:02:41]} {[%emt 00:01:17]} 36. Kc4 {[%clk
00:21:07]} {[%emt 00:03:10]} a6 {[%clk 00:01:46]} {[%emt 00:01:25]} 37. b4
{[%clk 00:20:26]} {[%emt 00:01:09]} cxb4 {[%clk 00:02:03]} {[%emt 00:00:14]} 38.
cxb4 {[%clk 00:20:49]} {[%emt 00:00:07]} Ne7 {[%clk 00:02:10]} {[%emt
00:00:23]} 39. Ne8+ {[%clk 00:17:19]} {[%emt 00:04:00]} Kc6 {[%clk 00:02:15]}
{[%emt 00:00:26]} 40. Bd2 {[%clk 00:14:09]} {[%emt 00:03:39]} b5+ {[%clk
00:02:22]} {[%emt 00:00:23]} 41. Kd4 {[%clk 00:13:18]} {[%emt 00:01:20]} Nb7
{[%clk 00:01:55]} {[%emt 00:00:57]} 42. Nf6 {[%clk 00:10:48]} {[%emt 00:03:00]}
Nf5+ {[%clk 00:29:58]} {[%emt 00:02:28]} 43. Ke4 {[%clk 00:41:04]} {[%emt
00:00:14]} Nd8 {[%clk 00:25:11]} {[%emt 00:05:18]} 44. Be1 {[%clk 00:40:23]}
{[%emt 00:01:10]} Nb7 {[%clk 00:22:16]} {[%emt 00:03:26]} 45. Ng4 {[%clk
00:36:08]} {[%emt 00:04:43]} Kd7 {[%clk 00:18:41]} {[%emt 00:04:06]} 46. Nh6
{[%clk 00:34:12]} {[%emt 00:02:26]} Ke8 {[%clk 00:18:17]} {[%emt 00:00:55]} 47.
Nxf5 {[%clk 00:31:47]} {[%emt 00:02:54]} gxf5+ {[%clk 00:18:18]} {[%emt
00:00:30]} 48. Kf3 {[%clk 00:31:10]} {[%emt 00:01:06]} Nd8 {[%clk 00:17:32]}
{[%emt 00:01:17]} 49. Bf2 {[%clk 00:30:49]} {[%emt 00:00:50]} Nc6 {[%clk
00:16:46]} {[%emt 00:01:16]} 50. Bc5 {[%clk 00:31:04]} {[%emt 00:00:15]} Nb8
{[%clk 00:16:49]} {[%emt 00:00:27]} 51. Kg3 {[%clk 00:28:36]} {[%emt 00:02:58]}
Nd7 {[%clk 00:15:53]} {[%emt 00:01:26]} 52. Be3 {[%clk 00:27:51]} {[%emt
00:01:15]} Nb8 {[%clk 00:16:04]} {[%emt 00:00:19]} 53. Kh4 {[%clk 00:27:44]}
{[%emt 00:00:37]} Nc6 {[%clk 00:16:04]} {[%emt 00:00:31]} 54. Bc5 {[%clk
00:28:01]} {[%emt 00:00:12]} Nb8 {[%clk 00:15:00]} {[%emt 00:01:33]} 55. Kh5
{[%clk 00:24:50]} {[%emt 00:03:42]} Nc6 {[%clk 00:14:13]} {[%emt 00:01:17]} 56.
Kh6 {[%clk 00:25:02]} {[%emt 00:00:17]} Nb8 {[%clk 00:14:05]} {[%emt 00:00:39]}
57. Kg7 {[%clk 00:25:12]} {[%emt 00:00:20]} Nd7 {[%clk 00:11:56]} {[%emt
00:02:40]} 58. g6 {[%clk 00:14:32]} {[%emt 00:11:09]} fxg6 {[%clk 00:11:49]}
{[%emt 00:00:37]} 59. Kxg6 {[%clk 00:15:01]} {[%emt 00:00:01]} Nb8 {[%clk
00:09:58]} {[%emt 00:02:21]} 60. Bd6 {[%clk 00:08:42]} {[%emt 00:06:50]} Nc6
{[%clk 00:10:18]} {[%emt 00:00:09]} 61. Kf6 {[%clk 00:08:19]} {[%emt 00:00:53]}
Kd7 {[%clk 00:10:42]} {[%emt 00:00:06]} 62. Bc5 {[%clk 00:08:02]} {[%emt
00:00:47]} Nb8 {[%clk 00:10:44]} {[%emt 00:00:28]} 1/2-1/2

[Event "Schack-SM 2024: Veteran-SM 65+"]
[Site "Fortnox Arena, Hejaregatan 5, Vaxjo, Sweden"]
[Date "2024.07.04"]
[Round "6.5"]
[White "Hogberg, Thomas"]
[Black "Gillefalk, Bjorn"]
[Result "0-1"]
[TimeControl "90 minutes for 40 moves + 30 minutes for the rest of the game + 30 seconds per move from move one."]
[WhiteElo "1999"]
[BlackElo "2063"]

1. d4 {[%clk 01:30:49]} {[%emt 00:00:11]} Nf6 {[%clk 01:30:52]} {[%emt
00:00:08]} 2. Nf3 {[%clk 01:31:09]} {[%emt 00:00:10]} c5 {[%clk 01:30:01]}
{[%emt 00:01:21]} 3. Nc3 {[%clk 01:28:17]} {[%emt 00:03:22]} cxd4 {[%clk
01:19:37]} {[%emt 00:10:54]} 4. Nxd4 {[%clk 01:28:22]} {[%emt 00:00:25]} a6
{[%clk 01:17:32]} {[%emt 00:02:36]} 5. Bg5 {[%clk 01:15:44]} {[%emt 00:13:07]}
e6 {[%clk 01:02:46]} {[%emt 00:15:17]} 6. e4 {[%clk 01:11:24]} {[%emt
00:04:49]} d6 {[%clk 01:03:10]} {[%emt 00:00:06]} 7. a4 {[%clk 01:11:22]}
{[%emt 00:00:32]} Be7 {[%clk 01:02:23]} {[%emt 00:01:17]} 8. Bc4 {[%clk
01:04:53]} {[%emt 00:06:59]} Nc6 {[%clk 00:49:25]} {[%emt 00:13:29]} 9. O-O
{[%clk 00:53:52]} {[%emt 00:11:30]} O-O {[%clk 00:45:32]} {[%emt 00:04:24]} 10.
Kh1 {[%clk 00:53:08]} {[%emt 00:01:13]} Bd7 {[%clk 00:28:29]} {[%emt 00:17:33]}
11. f4 {[%clk 00:49:41]} {[%emt 00:03:57]} Nxd4 {[%clk 00:19:56]} {[%emt
00:09:03]} 12. Qxd4 {[%clk 00:49:35]} {[%emt 00:00:36]} Ne8 {[%clk 00:14:13]}
{[%emt 00:06:14]} 13. Bxe7 {[%clk 00:47:31]} {[%emt 00:02:33]} Qxe7 {[%clk
00:14:39]} {[%emt 00:00:04]} 14. Rae1 {[%clk 00:42:42]} {[%emt 00:05:19]} Bc6
{[%clk 00:13:05]} {[%emt 00:02:04]} 15. Rf2 {[%clk 00:37:53]} {[%emt 00:05:18]}
Rd8 {[%clk 00:12:57]} {[%emt 00:00:39]} 16. Rd2 {[%clk 00:30:29]} {[%emt
00:07:54]} Qh4 {[%clk 00:12:07]} {[%emt 00:01:20]} 17. Qe3 {[%clk 00:29:48]}
{[%emt 00:01:12]} Nf6 {[%clk 00:11:37]} {[%emt 00:00:59]} 18. Qg3 {[%clk
00:26:08]} {[%emt 00:04:09]} Qxg3 {[%clk 00:10:40]} {[%emt 00:01:28]} 19. hxg3
{[%clk 00:26:28]} {[%emt 00:00:10]} Rfe8 {[%clk 00:06:49]} {[%emt 00:04:22]} 20.
Kg1 {[%clk 00:22:21]} {[%emt 00:04:36]} Kf8 {[%clk 00:06:58]} {[%emt 00:00:22]}
21. b4 {[%clk 00:20:14]} {[%emt 00:02:37]} d5 {[%clk 00:02:47]} {[%emt
00:04:41]} 22. exd5 {[%clk 00:15:54]} {[%emt 00:04:51]} exd5 {[%emt 00:00:02]}
23. Red1 {[%clk 00:16:01]} {[%emt 00:00:21]} Ne4 {[%clk 00:01:51]} {[%emt
00:01:55]} 24. Nxe4 {[%clk 00:12:26]} {[%emt 00:04:03]} Rxe4 {[%clk 00:02:20]}
{[%emt 00:00:02]} 25. Bxd5 {[%clk 00:12:40]} {[%emt 00:00:16]} Bxd5 {[%clk
00:02:37]} {[%emt 00:00:13]} 26. c3 {[%clk 00:12:51]} {[%emt 00:00:19]} Rc4
{[%clk 00:02:44]} {[%emt 00:00:23]} 27. Rxd5 {[%clk 00:12:12]} {[%emt
00:01:08]} Rxd5 {[%clk 00:03:02]} {[%emt 00:00:13]} 28. Rxd5 {[%clk 00:12:34]}
{[%emt 00:00:07]} Rxc3 {[%clk 00:03:27]} {[%emt 00:00:06]} 29. Rd4 {[%clk
00:11:26]} {[%emt 00:01:37]} Ke7 {[%clk 00:03:15]} {[%emt 00:00:43]} 30. Kf2
{[%clk 00:11:23]} {[%emt 00:00:32]} h5 {[%clk 00:03:35]} {[%emt 00:00:10]} 31.
b5 {[%clk 00:06:59]} {[%emt 00:04:54]} axb5 {[%clk 00:03:34]} {[%emt 00:00:33]}
32. axb5 {[%clk 00:07:22]} {[%emt 00:00:05]} Rb3 {[%clk 00:03:57]} {[%emt
00:00:07]} 33. Rd5 {[%clk 00:07:36]} {[%emt 00:00:14]} g6 {[%clk 00:04:19]}
{[%emt 00:00:10]} 34. Rg5 {[%clk 00:05:03]} {[%emt 00:03:03]} Kd7 {[%clk
00:03:47]} {[%emt 00:01:03]} 35. Rd5+ {[%clk 00:04:07]} {[%emt 00:01:26]} Ke6
{[%clk 00:04:01]} {[%emt 00:00:15]} 36. Rc5 {[%emt 00:00:47]} Kd6 {[%clk
00:04:12]} {[%emt 00:00:18]} 37. Rg5 {[%clk 00:03:59]} {[%emt 00:00:22]} Kc7
{[%clk 00:04:31]} {[%emt 00:00:11]} 38. Re5 {[%clk 00:04:24]} {[%emt 00:00:05]}
Kd6 {[%clk 00:02:53]} {[%emt 00:02:09]} 39. Rg5 {[%clk 00:03:56]} {[%emt
00:00:57]} b6 {[%clk 00:02:54]} {[%emt 00:00:28]} 40. Ke2 {[%clk 00:01:30]}
{[%emt 00:02:57]} Rc3 {[%clk 00:03:00]} {[%emt 00:00:24]} 41. g4 {[%clk
00:01:38]} {[%emt 00:00:22]} h4 {[%clk 00:29:00]} {[%emt 00:04:29]} 42. Re5
{[%clk 00:30:09]} {[%emt 00:01:59]} Rg3 {[%clk 00:26:27]} {[%emt 00:03:03]} 43.
Kf2 {[%clk 00:24:54]} {[%emt 00:05:46]} Rxg4 {[%clk 00:26:25]} {[%emt
00:00:32]} 44. Kf3 {[%clk 00:24:57]} {[%emt 00:00:26]} Rg3+ {[%clk 00:26:48]}
{[%emt 00:00:08]} 45. Kf2 {[%clk 00:25:23]} {[%emt 00:00:03]} Rb3 {[%clk
00:25:23]} {[%emt 00:01:56]} 46. Rg5 {[%clk 00:25:22]} {[%emt 00:00:31]} Rc3
{[%clk 00:24:52]} {[%emt 00:00:59]} 47. Rg4 {[%clk 00:24:41]} {[%emt 00:01:13]}
Kc5 {[%clk 00:24:04]} {[%emt 00:01:18]} 48. Rxh4 {[%clk 00:24:30]} {[%emt
00:00:41]} Kxb5 {[%clk 00:24:28]} {[%emt 00:00:06]} 49. Rh8 {[%clk 00:23:42]}
{[%emt 00:01:17]} Rd3 {[%clk 00:24:18]} {[%emt 00:00:41]} 50. Re8 {[%clk
00:22:35]} {[%emt 00:01:36]} Rd7 {[%clk 00:24:31]} {[%emt 00:00:18]} 51. Re5+
{[%clk 00:22:49]} {[%emt 00:00:16]} Kc4 {[%clk 00:24:51]} {[%emt 00:00:10]} 52.
Re4+ {[%clk 00:23:13]} {[%emt 00:00:06]} Rd4 {[%clk 00:23:29]} {[%emt
00:01:52]} 53. Re7 {[%clk 00:23:00]} {[%emt 00:00:42]} Rxf4+ {[%clk 00:23:37]}
{[%emt 00:00:22]} 54. Ke3 {[%clk 00:23:24]} {[%emt 00:00:06]} Rf6 {[%clk
00:23:51]} {[%emt 00:00:17]} 55. Rc7+ {[%clk 00:23:50]} {[%emt 00:00:05]} Kb4
{[%clk 00:23:51]} {[%emt 00:00:30]} 56. Kd3 {[%clk 00:23:45]} {[%emt 00:00:34]}
b5 {[%clk 00:24:06]} {[%emt 00:00:15]} 57. Rb7 {[%clk 00:23:24]} {[%emt
00:00:51]} Rd6+ {[%clk 00:22:44]} {[%emt 00:01:52]} 58. Ke3 {[%clk 00:21:42]}
{[%emt 00:02:13]} f5 {[%clk 00:23:01]} {[%emt 00:00:13]} 0-1

[Event "Schack-SM 2024: Veteran-SM 65+"]
[Site "Fortnox Arena, Hejaregatan 5, Vaxjo, Sweden"]
[Date "2024.07.04"]
[Round "6.6"]
[White "Sigeman, Johan"]
[Black "Wedin, Svante"]
[Result "0-1"]
[TimeControl "90 minutes for 40 moves + 30 minutes for the rest of the game + 30 seconds per move from move one."]
[WhiteElo "2049"]
[BlackElo "1907"]

1. d4 {[%clk 01:30:39]} {[%emt 00:00:21]} d5 {[%clk 01:30:49]} {[%emt
00:00:12]} 2. Nf3 {[%clk 01:30:40]} {[%emt 00:00:29]} Bf5 {[%clk 01:29:15]}
{[%emt 00:02:04]} 3. g3 {[%clk 01:30:36]} {[%emt 00:00:34]} h6 {[%clk
01:29:08]} {[%emt 00:00:36]} 4. Bg2 {[%clk 01:30:45]} {[%emt 00:00:20]} e6
{[%clk 01:29:24]} {[%emt 00:00:15]} 5. O-O {[%clk 01:30:47]} {[%emt 00:00:28]}
Nf6 {[%clk 01:27:02]} {[%emt 00:02:53]} 6. c4 {[%clk 01:30:29]} {[%emt
00:00:46]} c6 {[%clk 01:27:16]} {[%emt 00:00:17]} 7. Nc3 {[%clk 01:27:38]}
{[%emt 00:03:21]} Nbd7 {[%clk 01:23:51]} {[%emt 00:03:56]} 8. Qb3 {[%clk
01:24:42]} {[%emt 00:03:25]} Qb6 {[%clk 01:23:38]} {[%emt 00:00:43]} 9. c5
{[%clk 01:23:01]} {[%emt 00:02:12]} Qa6 {[%clk 01:21:22]} {[%emt 00:02:47]} 10.
Re1 {[%clk 01:05:46]} {[%emt 00:17:44]} b6 {[%clk 01:17:57]} {[%emt 00:03:54]}
11. cxb6 {[%clk 01:04:04]} {[%emt 00:02:13]} axb6 {[%clk 01:16:22]} {[%emt
00:02:05]} 12. Nh4 {[%clk 00:55:42]} {[%emt 00:08:51]} Bh7 {[%clk 01:07:34]}
{[%emt 00:09:19]} 13. e4 {[%clk 00:54:50]} {[%emt 00:01:21]} dxe4 {[%clk
01:00:38]} {[%emt 00:07:27]} 14. Nxe4 {[%clk 00:46:45]} {[%emt 00:08:35]} Nxe4
{[%clk 01:00:03]} {[%emt 00:01:04]} 15. Bxe4 {[%clk 00:46:47]} {[%emt
00:00:29]} Qa5 {[%clk 01:00:06]} {[%emt 00:00:27]} 16. Bd2 {[%clk 00:42:21]}
{[%emt 00:04:56]} Qxd2 {[%clk 00:57:23]} {[%emt 00:03:13]} 17. Bxc6 {[%clk
00:42:21]} {[%emt 00:00:29]} Rd8 {[%clk 00:57:20]} {[%emt 00:00:33]} 18. d5
{[%clk 00:39:14]} {[%emt 00:03:37]} Bc5 {[%clk 00:46:37]} {[%emt 00:11:14]} 19.
Rad1 {[%clk 00:18:55]} {[%emt 00:20:48]} Qxf2+ {[%clk 00:36:29]} {[%emt
00:10:38]} 20. Kh1 {[%clk 00:19:23]} {[%emt 00:00:03]} O-O {[%clk 00:32:08]}
{[%emt 00:04:51]} 21. dxe6 {[%clk 00:15:33]} {[%emt 00:04:20]} Bc2 {[%clk
00:28:15]} {[%emt 00:04:23]} 22. exf7+ {[%clk 00:09:25]} {[%emt 00:06:38]} Kh8
{[%clk 00:26:59]} {[%emt 00:01:46]} 23. Qe6 {[%clk 00:09:38]} {[%emt 00:00:17]}
Nf6 {[%clk 00:22:07]} {[%emt 00:05:21]} 24. Rxd8 {[%clk 00:08:22]} {[%emt
00:01:46]} Rxd8 {[%clk 00:22:03]} {[%emt 00:00:34]} 25. Qe8+ {[%clk 00:06:58]}
{[%emt 00:01:54]} Nxe8 {[%clk 00:21:33]} {[%emt 00:01:01]} 26. fxe8=Q+ {[%clk
00:06:34]} {[%emt 00:00:54]} Rxe8 {[%clk 00:21:47]} {[%emt 00:00:15]} 0-1